bitfinex/quotes_ETHUSD_20220311
["timestamp","ask_amount","ask_price","bid_price","bid_amount"]
[1647037747189,1.03317798,2572.8,2572.7,1.94398]
[1647037747397,0.07955005,2572.8,2572.7,1.94398]
[1647037747699,0.07955005,2572.8,2572.7,3.46411829]
[1647037747893,0.95362793,2572.9,2572.7,3.46411829]
[1647037748092,0.95362793,2572.9,2572.7,1.94398]
[1647037748295,0.07955005,2572.8,2572.7,1.94398]
[1647037748494,0.07955005,2572.8,2572.7,3.46407705]
[1647037748698,0.95362793,2572.9,2572.7,3.46407705]
[1647037748894,0.95362793,2572.9,2572.7,1.94398]
[1647037749095,1.03317798,2572.9,2572.7,1.94398]
[1647037749396,0.07955005,2572.8,2572.7,1.94398]
[1647037749596,0.07955005,2572.8,2572.7,3.4635205]
[1647037749795,0.95362793,2572.9,2572.7,3.4635205]
[1647037749995,0.95362793,2572.9,2572.7,1.94398]
[1647037750194,0.07955005,2572.9,2572.7,1.94398]
[1647037750396,1.03317798,2572.9,2572.7,1.94398]
[1647037750596,0.07955005,2572.8,2572.7,1.94398]
[1647037751244,0.95362793,2572.9,2572.7,1.94398]
[1647037751441,1.03317798,2572.8,2572.7,1.94398]
[1647037752038,0.95362793,2572.8,2572.7,1.94398]
[1647037752242,0.07955005,2572.8,2572.7,1.94398]
[1647037752443,1.03317798,2572.8,2572.7,1.94398]
[1647037752845,0.95362793,2572.8,2572.7,1.94398]
[1647037755196,0.07955005,2572.8,2572.7,1.94398]
[1647037755395,0.95362793,2572.9,2572.7,1.94398]
[1647037758098,0.95362793,2573.0,2572.7,1.94398]
[1647037758947,0.95362793,2573.0,2572.7,1.34134487]
[1647037759750,0.95362793,2572.9,2572.7,1.34134487]
[1647037760453,0.79441519,2572.8,2572.7,1.34134487]
[1647037760652,0.79441519,2572.8,2572.7,2.87186756]
[1647037760852,0.71486514,2572.8,2572.7,2.87186756]
[1647037761053,0.79441519,2572.8,2572.7,2.87186756]
[1647037761254,0.71486514,2572.8,2572.7,2.87186756]
[1647037762699,0.79441519,2572.9,2572.7,2.87186756]
[1647037762896,0.79441519,2572.8,2572.7,1.34134487]
[1647037763096,0.79441519,2572.8,2572.7,2.87146593]
[1647037763297,0.71486514,2572.8,2572.7,2.87146593]
[1647037763697,0.71486514,2572.9,2572.7,2.87146593]
[1647037763899,0.71466951,2572.9,2572.8,1.53012106]
[1647037764097,0.95362793,2573.1,2572.8,2.50206106]
[1647037764301,1.03317245,2573.1,2572.8,0.97194]
[1647037764900,0.07954452,2573.0,2572.8,0.97194]
[1647037765101,0.79418308,2572.9,2572.7,2.40345267]
[1647037765301,0.95362793,2573.1,2572.8,1.53003977]
[1647037765500,0.95362793,2573.1,2572.7,2.40345267]
[1647037765702,0.71468516,2572.8,2572.7,2.40345267]
[1647037765951,0.71468516,2572.8,2572.7,3.84326774]
[1647037766352,0.79422951,2572.8,2572.7,3.84326774]
[1647037766553,0.07954435,2572.8,2572.7,3.84326774]
[1647037766752,0.71468516,2572.8,2572.7,3.84326774]
[1647037767955,0.79422951,2572.8,2572.7,3.84326774]
[1647037768156,0.71468516,2572.8,2572.7,3.84326774]
[1647037769991,0.79422951,2572.8,2572.7,3.84326774]
[1647037770195,0.71468516,2572.8,2572.7,3.84326774]
[1647037770393,0.07954435,2572.8,2572.7,3.84326774]
[1647037770993,0.95362793,2573.0,2572.7,3.84326774]
[1647037771193,0.95362793,2573.0,2572.7,2.31325377]
[1647037771392,0.71473047,2572.8,2572.7,2.31325377]
[1647037771590,0.07954435,2572.8,2572.7,3.84538557]
[1647037771992,0.95362793,2573.0,2572.7,3.84538557]
[1647037772193,0.95362793,2573.0,2572.7,2.31325377]
[1647037772394,0.71473581,2572.8,2572.7,2.31325377]
[1647037772595,0.71473581,2572.8,2572.7,3.84565765]
[1647037774042,0.71473581,2572.9,2572.7,3.84565765]
[1647037774241,0.71473581,2572.9,2572.8,1.53240388]
[1647037774744,0.07954435,2572.9,2572.8,1.53240388]
[1647037774942,0.95362793,2573.0,2572.7,2.31325377]
[1647037775142,0.71470172,2572.8,2572.7,2.31325377]
[1647037775344,0.71470172,2572.8,2572.7,3.84610578]
[1647037776148,0.07954435,2572.8,2572.7,3.84610578]
[1647037776350,0.71470172,2572.8,2572.7,3.84610578]
[1647037777794,0.79429324,2572.8,2572.7,3.84610578]
[1647037777993,0.71474889,2572.8,2572.7,3.84610578]
[1647037778195,0.07954435,2572.8,2572.7,3.84610578]
[1647037778496,0.95362793,2573.0,2572.7,3.84610578]
[1647037778694,0.95362793,2573.0,2572.7,2.31325377]
[1647037778895,1.03317228,2572.9,2572.7,1.76340952]
[1647037779096,0.07954435,2572.8,2572.7,1.76340952]
[1647037779298,0.95362793,2572.9,2572.7,3.30768707]
[1647037779496,0.95362793,2572.9,2572.7,1.76340952]
[1647037780796,0.07954435,2573.2,2572.7,1.76340952]
[1647037780797,0.95362793,2573.0,2572.7,1.76340952]
[1647037781041,0.71483315,2572.8,2572.7,1.76340952]
[1647037781239,0.71483315,2572.8,2572.7,3.30764638]
[1647037783748,0.7943775,2572.8,2572.7,3.30764638]
[1647037783948,0.71483315,2572.8,2572.7,3.30764638]
[1647037785198,0.71483315,2572.8,2572.7,2.33573748]
[1647037794099,0.07954435,2572.8,2572.7,2.33573748]
[1647037794300,0.95362793,2573.0,2572.7,2.33573748]
[1647037794498,0.95362793,2573.0,2572.8,1.54423686]
[1647037796445,1.03317228,2572.9,2572.8,1.54423686]
[1647037796646,0.95362793,2572.9,2572.8,1.54423686]
[1647037796844,0.07954435,2572.9,2572.8,1.54423686]
[1647037797248,0.95362793,2573.0,2572.8,1.54423686]
[1647037798349,1.03317228,2572.9,2572.8,1.54423686]
[1647037798549,0.98317228,2572.9,2572.7,0.79150062]
[1647037798750,0.07954435,2572.8,2572.7,0.79150062]
[1647037798949,0.07954435,2572.8,2572.7,2.33802347]
[1647037799149,0.90362793,2572.9,2572.7,0.79150062]
[1647037799349,0.90362793,2572.9,2572.7,0.30411338]
[1647037799693,0.07954435,2572.8,2572.7,0.30411338]
[1647037799893,0.07954435,2572.8,2572.7,1.85989277]
[1647037801093,0.07954435,2572.9,2572.7,1.85989277]
[1647037801292,0.07954435,2572.8,2572.7,0.30411338]
[1647037801493,0.07954435,2572.9,2572.7,1.86005098]
[1647037801692,0.07954435,2572.9,2572.7,0.30411338]
[1647037801891,0.07954435,2572.9,2572.8,1.55597334]
[1647037802093,0.07954435,2572.9,2572.7,0.29203461]
[1647037802297,0.07954435,2572.9,2572.8,1.55621626]
[1647037809102,0.07954435,2572.9,2572.8,2.59552326]
[1647037809405,0.07954435,2572.9,2572.8,2.078614]
[1647037809406,1.08378016,2572.9,2572.8,2.078614]
[1647037809602,1.08378016,2572.9,2572.8,3.63586732]
[1647037810203,0.13000073,2572.9,2572.8,3.63586732]
[1647037811841,1.08378016,2572.9,2572.8,3.63586732]
[1647037814252,0.13000073,2572.9,2572.8,3.63586732]
[1647037816096,1.08378016,2572.9,2572.8,3.63586732]
[1647037816796,0.13000073,2572.9,2572.8,3.63586732]
[1647037819444,1.08378016,2572.9,2572.8,2.078614]
[1647037819645,1.08378016,2572.9,2572.8,3.64251022]
[1647037819844,1.08378016,2572.9,2572.8,2.078614]
[1647037820044,1.08378016,2572.9,2572.8,3.64248251]
[1647037820247,1.08378016,2572.9,2572.8,2.078614]
[1647037820445,1.08378016,2572.9,2572.8,3.64246593]
[1647037820646,1.08378016,2572.9,2572.8,2.078614]
[1647037820847,1.08378016,2572.9,2572.8,1.53050914]
[1647037821351,1.08378016,2572.9,2572.8,1.039307]
[1647037821546,1.08378016,2572.9,2572.8,1.53050914]
[1647037821746,0.13000073,2572.9,2572.8,1.53050914]
[1647037824505,1.08375552,2572.9,2572.8,3.10437265]
[1647037824707,0.13000073,2572.9,2572.8,1.53050914]
[1647037827750,1.08352647,2572.9,2572.8,1.53050914]
[1647037828348,0.13000073,2572.9,2572.8,1.53050914]
[1647037832809,0.07954435,2572.9,2572.8,1.53050914]
[1647037840944,2.52690241,2573.0,2572.8,0.84283077]
[1647037841145,0.07954435,2572.9,2572.8,0.35162863]
[1647037841346,0.07954435,2572.9,2572.7,0.29203461]
[1647037841646,0.95331167,2572.8,2572.7,0.29203461]
[1647037846595,0.95331167,2572.8,2572.7,0.64366324]
[1647037846797,0.95331167,2572.8,2572.7,1.13486538]
[1647037850151,0.95331167,2572.8,2572.7,1.08486538]
[1647037850752,0.07954435,2572.8,2572.7,1.08486538]
[1647037850951,0.95315476,2572.8,2572.7,1.08486538]
[1647037861100,0.95315476,2572.8,2572.7,0.34784961]
[1647037861298,0.95315476,2572.8,2572.6,2.13828]
[1647037861698,0.95315476,2572.8,2572.7,0.34784961]
[1647037862099,0.95315476,2572.8,2572.7,2.29182961]
[1647037863303,1.94411,2572.9,2572.7,2.29182961]
[1647037864243,1.94411,2572.9,2572.7,2.28939018]
[1647037864843,3.37458374,2572.9,2572.7,2.28939018]
[1647037866746,3.37458374,2572.9,2572.7,1.94154057]
[1647037866947,3.37458374,2572.9,2572.8,0.34784961]
[1647037869000,2.40252374,2572.9,2572.8,0.34784961]
[1647037869900,2.35252374,2572.9,2572.8,0.34784961]
[1647037885807,2.40310594,2572.9,2572.8,0.34784961]
[1647037893550,2.40310594,2572.9,2572.8,0.34664329]
[1647037893849,2.40310594,2572.9,2572.7,1.94154057]
[1647037894049,2.40310594,2572.9,2572.8,0.34664329]
[1647037895651,2.40310594,2572.9,2572.8,0.34044287]
[1647037899004,2.40310594,2572.9,2572.7,1.94154057]
[1647037899405,2.40310594,2572.9,2572.8,0.34044287]
[1647037901355,0.9726322,2572.9,2572.8,0.34044287]
[1647037901755,2.40394427,2572.9,2572.8,0.34044287]
[1647037902154,2.40394116,2572.9,2572.8,0.34044287]
[1647037902855,0.9726322,2572.9,2572.8,0.34044287]
[1647037903055,2.40396351,2572.9,2572.8,0.34044287]
[1647037903457,2.403992,2572.9,2572.8,0.34044287]
[1647037903656,0.9726322,2572.9,2572.8,0.34044287]
[1647037903856,2.40399211,2572.9,2572.8,0.34044287]
[1647037904258,0.9726322,2572.9,2572.8,0.34044287]
[1647037905516,1.16069584,2573.0,2572.8,0.34044287]
[1647037905717,0.81187543,2573.2,2572.8,3.84044287]
[1647037905718,0.95414881,2572.9,2572.8,3.84044287]
[1647037905918,0.34454881,2573.1,2572.9,0.06930664]
[1647037906117,0.00382657,2573.3,2573.1,0.07883344]
[1647037906318,0.00382657,2573.3,2573.2,1.59087016]
[1647037906518,0.00382657,2573.3,2573.1,0.07883344]
[1647037906718,1.43122322,2573.7,2573.2,1.59063861]
[1647037906918,0.0038268,2573.3,2573.2,1.59063861]
[1647037907118,0.0038268,2573.3,2573.1,0.07883344]
[1647037907322,1.43122322,2573.7,2573.1,2.99379474]
[1647037907626,1.43122322,2573.7,2573.3,0.0868196]
[1647037908322,1.43122322,2573.8,2573.3,0.0868196]
[1647037909250,1.43122322,2573.8,2573.4,0.9716596]
[1647037909552,1.43122322,2573.8,2573.5,1.04334381]
[1647037909750,1.43122322,2573.8,2573.6,0.06990664]
[1647037910352,1.43122322,2573.9,2573.6,1.04160664]
[1647037910551,1.43122322,2573.9,2573.8,0.07461851]
[1647037911551,1.43122322,2573.9,2573.8,0.41506138]
[1647037913007,1.43122322,2573.9,2573.8,0.34044287]
[1647037913807,1.43122322,2573.9,2573.8,0.41257321]
[1647037917757,0.97171,2574.0,2573.8,1.38427321]
[1647037917758,2.40714356,2574.0,2573.8,1.38427321]
[1647037918155,2.40714356,2574.0,2573.8,1.04383034]
[1647037918357,2.40714356,2574.0,2573.9,0.34044287]
[1647037918961,2.40726315,2574.0,2573.9,0.34044287]
[1647037920004,2.40293322,2574.0,2573.9,0.34044287]
[1647037924758,2.40293322,2574.0,2573.9,0.19609544]
[1647037924959,2.40293322,2574.0,2573.8,1.04383034]
[1647037925359,2.40293322,2574.0,2573.9,0.19609544]
[1647037933157,1.43122322,2574.0,2573.9,0.19609544]
[1647037936004,3.37861552,2574.1,2573.9,0.19609544]
[1647037936403,3.35403774,2574.1,2573.8,1.04383034]
[1647037936607,0.94894435,2573.9,2573.8,1.04383034]
[1647037936804,3.35002544,2574.1,2573.8,1.04383034]
[1647037937004,0.94894287,2573.9,2573.8,1.04383034]
[1647037937708,3.35403072,2574.1,2573.8,1.04383034]
[1647037937908,3.35002544,2574.1,2573.8,1.04383034]
[1647037938108,0.94899138,2573.9,2573.8,1.04383034]
[1647037938307,0.00380337,2574.0,2573.8,1.04383034]
[1647037939155,3.35002544,2574.1,2573.8,1.04383034]
[1647037939555,0.00380335,2574.0,2573.8,1.04383034]
[1647037940357,1.43122322,2574.0,2573.8,1.04383034]
[1647037940555,0.00381061,2574.0,2573.8,1.04383034]
[1647037941366,0.94939747,2573.9,2573.8,1.04383034]
[1647037941858,0.94939747,2573.9,2573.8,1.23992578]
[1647037945804,0.94939747,2573.9,2573.8,1.23858913]
[1647037947457,1.43122322,2574.1,2573.8,1.23858913]
[1647037947755,0.95076652,2573.9,2573.8,1.23858913]
[1647037947956,0.00413925,2574.0,2573.8,1.04249369]
[1647037948156,0.00413925,2574.0,2573.8,1.23858913]
[1647037948356,1.43536247,2574.0,2573.8,1.23858913]
[1647037948955,0.20067796,2574.2,2573.8,1.23858913]
[1647037948956,1.43122322,2574.1,2573.8,1.23858913]
[1647037949160,1.43535925,2574.0,2573.8,1.23858913]
[1647037950004,1.43122322,2574.0,2573.8,1.23858913]
[1647037950207,1.43535925,2574.0,2573.8,1.23858913]
[1647037950404,1.43122322,2573.9,2573.8,1.23858913]
[1647037951711,1.90178824,2574.0,2573.8,1.23858913]
[1647037952106,0.00380393,2574.0,2573.8,1.23858913]
[1647037952307,1.89798431,2574.1,2573.8,1.23858913]
[1647037952909,0.00379615,2574.0,2573.8,1.23858913]
[1647037953112,0.00379615,2574.0,2573.8,1.04249369]
[1647037953559,1.94685409,2574.1,2573.9,0.19609544]
[1647037953760,1.94685409,2574.1,2573.9,1.16781544]
[1647037953960,0.00379615,2574.0,2573.9,1.16781544]
[1647037954362,1.9096787,2574.0,2573.9,1.16781544]
[1647037954963,1.90588255,2574.0,2573.9,1.16781544]
[1647037955463,2.87760255,2574.0,2573.9,1.16781544]
[1647037961174,0.97172,2574.0,2573.9,1.16781544]
[1647037961775,0.97172,2574.0,2573.9,0.6747036]
[1647037973218,2.87727067,2574.0,2573.9,0.6747036]
[1647037973617,0.97172,2574.0,2573.9,0.6747036]
[1647037973817,2.8772827,2574.0,2573.9,0.6747036]
[1647037974017,0.97172,2574.0,2573.9,0.6747036]
[1647037974217,4.47172,2574.0,2573.9,0.6747036]
[1647037974419,6.37728786,2574.0,2573.9,0.6747036]
[1647037974619,2.87728786,2574.0,2573.9,0.6747036]
[1647037975020,0.97172,2574.0,2573.9,0.6747036]
[1647037976862,0.97172,2574.0,2573.9,0.39367971]
[1647037978268,2.87719466,2574.0,2573.9,0.39367971]
[1647037979812,0.97172,2574.0,2573.9,0.39367971]
[1647037980619,2.8771491,2574.0,2573.9,0.39367971]
[1647037982422,0.97172,2574.0,2573.9,0.39367971]
[1647037982624,2.8771491,2574.0,2573.9,0.39367971]
[1647037983463,2.87717698,2574.0,2573.9,0.39367971]
[1647037985663,0.97172,2574.0,2573.9,0.39367971]
[1647037986664,0.92172,2574.0,2573.9,0.39367971]
[1647037989017,2.82727203,2574.0,2573.9,0.39367971]
[1647037989215,0.92172,2574.0,2573.9,0.39367971]
[1647037990625,2.8275651,2574.0,2573.9,0.39367971]
[1647037990967,0.92172,2574.0,2573.9,0.39367971]
[1647037992774,4.42172,2574.0,2573.9,0.39367971]
[1647037993775,4.42172,2574.0,2573.9,0.23207023]
[1647037993776,0.92172,2574.0,2573.9,0.23207023]
[1647037994376,4.42172,2574.0,2573.9,0.23207023]
[1647037995215,0.92172,2574.0,2573.9,0.23207023]
[1647037995816,4.42172,2574.0,2573.9,0.23207023]
[1647037996013,0.92172,2574.0,2573.9,0.23207023]
[1647037996715,0.92172,2574.0,2573.9,0.21517023]
[1647037999364,4.42172,2574.0,2573.9,0.21517023]
[1647037999565,0.92172,2574.0,2573.9,0.21517023]
[1647038001570,0.92172,2574.0,2573.9,0.16517023]
[1647038001768,0.92172,2574.0,2573.7,0.08944804]
[1647038001968,1.90748163,2573.9,2573.8,0.16517023]
[1647038002621,3.80090163,2574.0,2573.8,0.16517023]
[1647038003220,1.90748163,2573.9,2573.8,0.16517023]
[1647038003622,1.89342,2574.0,2573.8,0.16517023]
[1647038003820,5.39342,2574.0,2573.8,0.16517023]
[1647038004121,1.90753373,2573.9,2573.8,0.16517023]
[1647038004522,2.82925373,2574.0,2573.8,0.16517023]
[1647038004721,2.82925373,2574.0,2573.8,1.13681023]
[1647038004921,2.82925373,2574.0,2573.9,0.0751207]
[1647038007370,2.82925373,2574.0,2573.9,0.24029093]
[1647038007573,1.90753373,2574.0,2573.9,0.24029093]
[1647038011115,4.15082373,2574.1,2573.9,0.24029093]
[1647038011320,3.85082373,2574.1,2573.9,0.24029093]
[1647038012322,1.94329,2574.1,2573.9,0.0751207]
[1647038012521,1.9477104,2574.1,2573.9,0.0751207]
[1647038012720,1.9477104,2574.1,2574.0,0.16517023]
[1647038013321,0.9760504,2574.1,2574.0,0.16517023]
[1647038013567,3.07981169,2574.2,2574.0,0.16517023]
[1647038013768,3.08423206,2574.2,2574.0,0.23949722]
[1647038013970,1.90753373,2574.1,2574.0,0.23949722]
[1647038014767,2.11109066,2574.2,2574.0,0.23949722]
[1647038015167,0.20355693,2574.2,2574.0,0.23949722]
[1647038015368,1.42936109,2574.1,2574.0,0.23949722]
[1647038018623,0.20067796,2574.2,2574.0,0.23949722]
[1647038019023,0.20067796,2574.2,2574.0,0.07432699]
[1647038019230,1.42852092,2574.1,2574.0,0.07432699]
[1647038019824,1.42841749,2574.1,2574.0,0.97159]
[1647038020024,1.42841749,2574.1,2573.9,0.9716]
[1647038020828,1.43261492,2574.1,2573.9,0.9716]
[1647038021870,1.42841749,2574.1,2573.9,0.9716]
[1647038022067,1.43261492,2574.1,2573.9,0.9716]
[1647038023074,1.42841749,2574.1,2573.9,0.9716]
[1647038023474,1.43265991,2574.1,2573.9,0.9716]
[1647038024276,1.42841749,2574.1,2574.0,0.16517023]
[1647038024478,1.43265991,2574.1,2574.0,0.16517023]
[1647038024730,1.43265991,2574.1,2574.0,0.16391463]
[1647038025319,0.00424242,2574.1,2574.0,0.26570867]
[1647038025519,1.92841749,2574.2,2574.0,0.26570867]
[1647038025720,1.46071015,2574.2,2574.0,0.26327637]
[1647038025920,1.46071015,2574.2,2574.0,0.45747637]
[1647038025921,0.50877178,2574.2,2574.0,0.45747637]
[1647038026120,0.50877178,2574.2,2574.1,1.59014909]
[1647038026121,0.00452939,2574.2,2574.1,1.59014909]
[1647038026320,0.00452939,2574.2,2574.1,0.1942]
[1647038026520,0.95193837,2574.5,2574.1,0.1942]
[1647038027324,0.95193837,2574.6,2574.1,0.1942]
[1647038027623,0.95193837,2574.6,2574.1,2.1365162]
[1647038027824,0.95193837,2574.6,2574.1,4.0788462]
[1647038028966,0.95193837,2574.6,2574.3,1.94249]
[1647038029465,0.00287996,2574.5,2574.4,0.16148233]
[1647038029667,0.01287996,2574.5,2574.4,0.16148233]
[1647038030068,0.01287996,2574.5,2574.4,0.23119891]
[1647038030469,0.01,2574.5,2574.4,0.23119891]
[1647038031868,0.01,2574.5,2574.4,0.42539891]
[1647038033121,0.01,2574.5,2574.4,0.23119891]
[1647038033321,0.00442828,2574.6,2574.4,1.13264233]
[1647038033521,0.00442828,2574.6,2574.4,2.10376103]
[1647038033921,0.95193837,2574.9,2574.4,2.10376103]
[1647038034123,0.00442825,2574.6,2574.4,2.10376103]
[1647038034522,0.00442825,2574.6,2574.4,3.07487103]
[1647038034722,0.00442825,2574.6,2574.4,2.9133887]
[1647038034925,0.00442825,2574.6,2574.5,0.16148233]
[1647038035122,0.95193837,2575.0,2574.5,0.35568233]
[1647038035322,0.95193837,2575.0,2574.6,0.9710588]
[1647038035725,0.96963439,2575.0,2574.6,0.9710588]
[1647038035966,0.01769602,2575.0,2574.6,0.9710588]
[1647038036367,0.95193837,2575.1,2574.6,0.9710588]
[1647038036567,0.00288036,2574.9,2574.6,0.9710588]
[1647038037067,0.00288036,2574.9,2574.7,0.97106]
[1647038037273,0.00288036,2574.9,2574.7,1.9421636]
[1647038037474,0.95193837,2575.1,2574.7,1.9421636]
[1647038037672,0.00288036,2574.9,2574.7,1.9421636]
[1647038038073,0.00288036,2574.9,2574.7,2.8983836]
[1647038038574,0.95193837,2575.2,2574.7,2.8983836]
[1647038038773,0.00443164,2574.9,2574.7,2.8983836]
[1647038038975,0.00443164,2574.9,2574.7,3.0923836]
[1647038039176,0.00443164,2574.9,2574.8,0.97112]
[1647038039816,0.00443164,2574.9,2574.7,3.0923836]
[1647038040024,0.95193837,2575.1,2574.7,3.0923836]
[1647038040222,0.00412802,2575.0,2574.8,1.13261233]
[1647038041021,0.95193837,2575.2,2574.8,1.13261233]
[1647038041522,0.00398241,2575.0,2574.8,1.13261233]
[1647038042220,0.95193837,2575.2,2574.8,1.13261233]
[1647038042422,0.00398241,2575.0,2574.8,1.13261233]
[1647038043467,0.95193837,2575.2,2574.9,0.07589224]
[1647038043669,0.95193837,2575.2,2574.9,1.04708224]
[1647038043870,0.95193837,2575.2,2575.1,0.06945509]
[1647038044069,0.96193837,2575.2,2575.1,0.06945509]
[1647038045471,0.96193837,2575.2,2575.1,0.23093742]
[1647038047324,0.96193837,2575.2,2575.1,0.16148233]
[1647038049330,0.95193837,2575.2,2575.1,0.16148233]
[1647038049530,2.39960749,2575.4,2575.1,0.16148233]
[1647038049728,2.39960749,2575.4,2575.1,1.13262233]
[1647038049729,0.94695262,2575.2,2575.1,1.13262233]
[1647038049929,2.39960749,2575.4,2575.1,1.13262233]
[1647038050131,0.94695454,2575.2,2575.1,1.13262233]
[1647038050330,0.5,2575.3,2575.1,1.13262233]
[1647038050636,1.42841749,2575.3,2575.1,0.68116237]
[1647038050830,1.42841749,2575.3,2575.1,0.51968004]
[1647038051068,1.42841749,2575.3,2575.2,0.16148233]
[1647038051268,0.97119,2575.4,2575.2,0.16148233]
[1647038051269,2.39960749,2575.4,2575.2,0.16148233]
[1647038052473,2.40395749,2575.4,2575.2,0.16148233]
[1647038053072,2.39960749,2575.4,2575.2,0.16148233]
[1647038053374,2.40395749,2575.4,2575.2,0.16148233]
[1647038054272,2.39960749,2575.4,2575.2,0.16148233]
[1647038054477,2.40395749,2575.4,2575.2,0.16148233]
[1647038054728,1.43276749,2575.4,2575.2,1.13258233]
[1647038055518,1.42841749,2575.4,2575.2,1.13258233]
[1647038055922,1.4325487,2575.4,2575.2,1.13258233]
[1647038056119,1.4325487,2575.4,2575.2,0.9711]
[1647038056419,1.4325487,2575.4,2575.3,0.16148233]
[1647038056620,1.42841749,2575.4,2575.3,0.16148233]
[1647038057020,1.43254413,2575.4,2575.3,0.16148233]
[1647038057627,4.93254413,2575.4,2575.3,0.16148233]
[1647038057827,3.50412664,2575.4,2575.3,0.16148233]
[1647038058027,3.5,2575.4,2575.3,0.16148233]
[1647038058228,3.8,2575.4,2575.3,0.16148233]
[1647038058672,3.81,2575.4,2575.3,0.16148233]
[1647038059072,3.84133464,2575.4,2575.3,0.16148233]
[1647038059272,3.79133464,2575.4,2575.3,0.16148233]
[1647038059473,5.70886837,2575.4,2575.3,0.16148233]
[1647038059675,6.68743838,2575.4,2575.3,0.16148233]
[1647038059872,4.79133464,2575.4,2575.3,0.16148233]
[1647038060275,4.79133464,2575.4,2575.3,0.11148233]
[1647038060473,4.80133464,2575.4,2575.3,0.11148233]
[1647038061077,4.79133464,2575.4,2575.3,0.11148233]
[1647038061378,4.79133464,2575.4,2575.1,0.51968004]
[1647038061574,2.90968046,2575.3,2575.1,0.51968004]
[1647038061774,3.8,2575.2,2575.1,0.51968004]
[1647038061975,5.6959795,2575.2,2574.9,0.97122]
[1647038062218,1.42222522,2575.0,2574.9,0.97122]
[1647038062421,1.42222522,2575.0,2574.8,1.9425]
[1647038064322,1.42222522,2574.9,2574.8,1.9425]
[1647038064722,1.37222522,2574.9,2574.8,1.9425]
[1647038065325,4.1384995,2575.1,2574.8,1.9425]
[1647038065524,0.00434099,2575.0,2574.8,1.9425]
[1647038066472,4.1384995,2575.1,2574.8,1.9425]
[1647038066672,4.1384995,2575.1,2575.0,0.11148233]
[1647038066673,2.1959795,2575.1,2575.0,0.11148233]
[1647038066872,2.4959795,2575.2,2575.0,0.06776157]
[1647038067072,2.1959795,2575.2,2575.0,0.06776157]
[1647038067672,2.2001018,2575.2,2575.0,0.06776157]
[1647038068271,1.8959795,2575.1,2575.0,0.06776157]
[1647038068973,2.5001018,2575.2,2575.0,0.06776157]
[1647038069177,2.2001018,2575.2,2575.0,0.06776157]
[1647038069816,1.8959795,2575.1,2575.0,0.06776157]
[1647038071823,1.8959795,2575.1,2574.9,0.97116]
[1647038072018,1.8959795,2575.1,2575.0,0.06776157]
[1647038072622,1.90003567,2575.1,2575.0,0.06776157]
[1647038073467,1.8959795,2575.1,2575.0,0.06776157]
[1647038074270,0.00406754,2575.2,2575.0,0.06776157]
[1647038074271,1.90004704,2575.2,2575.0,0.06776157]
[1647038074668,1.8959795,2575.2,2575.0,0.06776157]
[1647038074868,1.90004702,2575.2,2575.0,0.06776157]
[1647038075870,0.97118,2575.2,2575.0,0.06776157]
[1647038076270,0.00392858,2575.2,2575.1,1.94222]
[1647038076972,2.8671195,2575.3,2575.1,1.94222]
[1647038077423,0.97515529,2575.3,2575.2,0.06776157]
[1647038078324,0.97114,2575.3,2575.2,0.06776157]
[1647038078622,2.8671195,2575.3,2575.2,0.06776157]
[1647038081868,0.97114,2575.3,2575.2,0.06776157]
[1647038085720,2.39846837,2575.3,2575.2,0.06776157]
[1647038086622,2.69846837,2575.3,2575.2,0.06776157]
[1647038088870,2.39846837,2575.3,2575.2,0.14836639]
[1647038089471,0.97114,2575.3,2575.2,0.14836639]
[1647038089673,2.39846837,2575.3,2575.2,0.14836639]
[1647038089871,0.97114,2575.3,2575.2,0.14836639]
[1647038090072,2.39846837,2575.3,2575.2,0.14836639]
[1647038090675,0.97114,2575.3,2575.2,0.14836639]
[1647038091073,0.97114,2575.3,2575.2,0.14697208]
[1647038091472,0.97114,2575.3,2575.2,0.08060482]
[1647038091696,0.97114,2575.3,2575.2,0.14697208]
[1647038093334,2.39761478,2575.3,2575.2,0.14697208]
[1647038095235,0.97114,2575.3,2575.2,0.14697208]
[1647038095632,2.39746643,2575.3,2575.2,0.14697208]
[1647038096874,0.97114,2575.3,2575.2,0.14697208]
[1647038097481,2.39738671,2575.3,2575.2,0.14697208]
[1647038097680,0.97114,2575.3,2575.2,0.14697208]
[1647038098881,2.39731038,2575.3,2575.2,0.14697208]
[1647038099280,2.39731159,2575.3,2575.2,0.14697208]
[1647038101722,1.42617159,2575.3,2575.2,0.14697208]
[1647038105379,1.32617159,2575.3,2575.2,0.14697208]
[1647038109029,2.24609092,2575.4,2575.2,0.14697208]
[1647038109030,4.14753545,2575.4,2575.2,0.14697208]
[1647038109230,3.84753545,2575.4,2575.2,0.14697208]
[1647038109430,3.84373453,2575.4,2575.2,0.08060482]
[1647038109629,3.84373453,2575.4,2575.3,0.06636726]
[1647038109831,3.8475444,2575.4,2575.3,0.04075471]
[1647038110030,4.1475444,2575.4,2575.3,0.04075471]
[1647038111069,4.14373453,2575.4,2575.3,0.04075471]
[1647038114827,4.14373453,2575.4,2575.1,1.94222]
[1647038115133,4.14373453,2575.4,2575.3,0.04075471]
[1647038115929,4.14756015,2575.4,2575.3,0.04075471]
[1647038116729,4.14373453,2575.4,2575.3,0.04075471]
[1647038117130,2.24229,2575.4,2575.3,0.04075471]
[1647038117933,4.14719043,2575.4,2575.3,0.04075471]
[1647038118572,2.24229,2575.4,2575.3,0.04075471]
[1647038124727,2.24229,2575.4,2575.3,0.02513726]
[1647038125128,2.24229,2575.4,2575.1,1.94222]
[1647038125329,1.90561985,2575.2,2575.1,1.94222]
[1647038127273,1.90561985,2575.2,2575.1,2.0287892]
[1647038127476,1.57499148,2575.3,2575.1,2.0287892]
[1647038127477,3.48061133,2575.3,2575.1,2.0287892]
[1647038127774,1.90561985,2575.2,2575.1,2.0287892]
[1647038127976,2.20561985,2575.2,2575.1,2.0287892]
[1647038128276,2.20561985,2575.2,2575.1,1.94222]
[1647038129076,0.97123,2575.1,2574.9,0.97109]
[1647038130147,0.9750527,2575.1,2574.9,0.97109]
[1647038130347,1.42902549,2575.0,2574.9,0.97109]
[1647038130550,0.9750527,2575.1,2574.9,0.08682466]
[1647038130751,2.88067255,2575.1,2574.9,0.08682466]
[1647038131151,2.8464701,2575.1,2574.9,0.08682466]
[1647038131358,2.8502928,2575.1,2574.9,0.08682466]
[1647038131555,1.90944255,2575.1,2574.9,0.08682466]
[1647038131954,0.0038227,2575.1,2574.9,0.08682466]
[1647038132362,3.47683985,2575.2,2574.9,1.05804466]
[1647038132562,0.00383253,2575.1,2574.9,1.05804466]
[1647038133475,4.44806985,2575.2,2574.9,1.05804466]
[1647038133676,0.00383253,2575.1,2574.9,1.05804466]
[1647038134076,1.90945238,2575.1,2574.9,1.05804466]
[1647038134777,4.44806985,2575.2,2574.9,1.05804466]
[1647038134978,0.00383253,2575.1,2574.9,1.05804466]
[1647038135379,0.00383253,2575.1,2575.0,0.02513726]
[1647038135977,4.39806985,2575.2,2575.0,0.02513726]
[1647038136178,4.40189138,2575.2,2575.0,0.02513726]